[Event "*** Titled Tuesday Blitz"]
[Site "Chess.com"]
[Date "2021.03.30"]
[Round "10"]
[White "mr65"]
[Black "thechesscorner64"]
[Result "0-1"]
[WhiteElo "2101"]
[BlackElo "2330"]
[TimeControl "180+1"]
[EndTime "11:58:07 PDT"]
[Termination "thechesscorner64 won on time"]

1. e4 {[%clk 0:03:00.9]} 1... c5 {[%clk 0:02:59.2]} 2. d4 {[%clk 0:03:00.9]}
2... cxd4 {[%clk 0:02:58.4]} 3. c3 {[%clk 0:03:01]} 3... Nf6 {[%clk 0:02:44.8]}
4. e5 {[%clk 0:03:00.3]} 4... Nd5 {[%clk 0:02:32.9]} 5. Bc4 {[%clk 0:02:59.8]}
5... Nb6 {[%clk 0:02:32]} 6. Bb3 {[%clk 0:02:59.3]} 6... Nc6 {[%clk 0:02:32]} 7.
Nf3 {[%clk 0:02:57.8]} 7... g6 {[%clk 0:02:32]} 8. cxd4 {[%clk 0:02:57.4]} 8...
Bg7 {[%clk 0:02:31.6]} 9. O-O {[%clk 0:02:56.5]} 9... O-O {[%clk 0:02:30.7]} 10.
h3 {[%clk 0:02:55.9]} 10... d6 {[%clk 0:02:30.9]} 11. exd6 {[%clk 0:02:54.9]}
11... Qxd6 {[%clk 0:02:31.5]} 12. Be3 {[%clk 0:02:53.7]} 12... Bf5 {[%clk
0:02:28.1]} 13. Nc3 {[%clk 0:02:53.2]} 13... Na5 {[%clk 0:02:25.6]} 14. Bc2
{[%clk 0:02:45.8]} 14... Bxc2 {[%clk 0:02:19.5]} 15. Qxc2 {[%clk 0:02:44.8]}
15... Rac8 {[%clk 0:02:20.4]} 16. Rad1 {[%clk 0:02:42.2]} 16... Nac4 {[%clk
0:02:20]} 17. Qc1 {[%clk 0:02:37.5]} 17... Nd5 {[%clk 0:02:13.9]} 18. Nxd5
{[%clk 0:02:32]} 18... Qxd5 {[%clk 0:02:14.8]} 19. Qb1 {[%clk 0:02:28.3]} 19...
Rfd8 {[%clk 0:02:10.7]} 20. b3 {[%clk 0:02:27.5]} 20... Na3 {[%clk 0:02:02.5]}
21. Qd3 {[%clk 0:02:21.2]} 21... b5 {[%clk 0:01:56]} 22. Rc1 {[%clk 0:02:18.1]}
22... e6 {[%clk 0:01:55.8]} 23. Rxc8 {[%clk 0:02:14.1]} 23... Rxc8 {[%clk
0:01:56.7]} 24. Rc1 {[%clk 0:02:12.2]} 24... Rxc1+ {[%clk 0:01:43.4]} 25. Bxc1
{[%clk 0:02:10.9]} 25... b4 {[%clk 0:01:43.2]} 26. Bxa3 {[%clk 0:02:06]} 26...
bxa3 {[%clk 0:01:44.1]} 27. Qc4 {[%clk 0:01:42.4]} 27... Qe4 {[%clk 0:01:35.2]}
28. Qc1 {[%clk 0:01:41.2]} 28... Bf8 {[%clk 0:01:33.8]} 29. Kf1 {[%clk
0:01:14.3]} 29... a5 {[%clk 0:01:30.6]} 30. Kg1 {[%clk 0:01:12.2]} 30... h5
{[%clk 0:01:28.6]} 31. Kf1 {[%clk 0:01:09.8]} 31... Qd3+ {[%clk 0:01:27.6]} 32.
Kg1 {[%clk 0:01:09.1]} 32... Bb4 {[%clk 0:01:26.3]} 33. Qh6 {[%clk 0:00:55]}
33... Bf8 {[%clk 0:01:21.2]} 34. Qd2 {[%clk 0:00:53.1]} 34... Qb1+ {[%clk
0:01:16.9]} 35. Kh2 {[%clk 0:00:51.5]} 35... Bd6+ {[%clk 0:01:17.4]} 36. g3
{[%clk 0:00:50.1]} 36... Qb2 {[%clk 0:01:17.8]} 37. Kg2 {[%clk 0:00:47.2]} 37...
Kf8 {[%clk 0:01:14.2]} 38. Qxa5 {[%clk 0:00:41]} 38... Qxa2 {[%clk 0:01:04.1]}
39. Qd8+ {[%clk 0:00:39.9]} 39... Kg7 {[%clk 0:01:04.2]} 40. Qxd6 {[%clk
0:00:39.5]} 40... Qxb3 {[%clk 0:01:03.7]} 41. Qe5+ {[%clk 0:00:30.2]} 41... Kg8
{[%clk 0:01:03.7]} 42. Ng5 {[%clk 0:00:25]} 42... a2 {[%clk 0:00:59.6]} 43. Qf6
{[%clk 0:00:20.4]} 43... Qb7+ {[%clk 0:00:53.5]} 44. d5 {[%clk 0:00:18.9]} 44...
exd5 {[%clk 0:00:43.4]} 45. Kh2 {[%clk 0:00:13]} 45... Qa7 {[%clk 0:00:40.5]}
46. Qd8+ {[%clk 0:00:12.2]} 46... Kg7 {[%clk 0:00:38.9]} 47. Qxd5 {[%clk
0:00:09.4]} 47... a1=Q {[%clk 0:00:38.2]} 48. Ne4 {[%clk 0:00:04.4]} 48... Q1d4
{[%clk 0:00:36.2]} 49. Qxd4+ {[%clk 0:00:02.8]} 49... Qxd4 {[%clk 0:00:35.4]}
50. f3 {[%clk 0:00:02.1]} 50... Qb2+ {[%clk 0:00:35.6]} 51. Kg1 {[%clk
0:00:01.6]} 51... f5 {[%clk 0:00:36]} 0-1

[Event "*** Titled Tuesday Blitz"]
[Site "Chess.com"]
[Date "2021.03.30"]
[Round "10"]
[White "vinniethepooh"]
[Black "mishanick"]
[Result "0-1"]
[WhiteElo "2672"]
[BlackElo "2943"]
[TimeControl "180+1"]
[EndTime "11:58:09 PDT"]
[Termination "mishanick won by resignation"]

1. d4 {[%clk 0:03:00.9]} 1... Nf6 {[%clk 0:02:58.2]} 2. c4 {[%clk 0:03:01.1]}
2... e6 {[%clk 0:02:58]} 3. Nc3 {[%clk 0:03:01.6]} 3... Bb4 {[%clk 0:02:57.7]}
4. e3 {[%clk 0:03:02]} 4... O-O {[%clk 0:02:57.3]} 5. Bd3 {[%clk 0:03:02.4]}
5... c5 {[%clk 0:02:57.6]} 6. Nf3 {[%clk 0:03:02.6]} 6... cxd4 {[%clk
0:02:57.7]} 7. exd4 {[%clk 0:03:03.5]} 7... b6 {[%clk 0:02:58.4]} 8. O-O {[%clk
0:03:01.2]} 8... Bb7 {[%clk 0:02:58.8]} 9. Na4 {[%clk 0:02:59.9]} 9... Re8
{[%clk 0:02:56.6]} 10. a3 {[%clk 0:03:00.4]} 10... Bf8 {[%clk 0:02:56.8]} 11.
Nc3 {[%clk 0:03:00]} 11... d6 {[%clk 0:02:55.6]} 12. Bf4 {[%clk 0:03:00.3]}
12... Nbd7 {[%clk 0:02:55.1]} 13. Re1 {[%clk 0:03:00.9]} 13... a6 {[%clk
0:02:53.2]} 14. h3 {[%clk 0:03:01]} 14... Rc8 {[%clk 0:02:53.7]} 15. Rc1 {[%clk
0:03:00.1]} 15... h6 {[%clk 0:02:40.4]} 16. Bh2 {[%clk 0:02:54.8]} 16... Bc6
{[%clk 0:02:26.7]} 17. Nd2 {[%clk 0:02:47.7]} 17... Bb7 {[%clk 0:02:25.5]} 18.
Nde4 {[%clk 0:02:44.1]} 18... e5 {[%clk 0:02:21.5]} 19. d5 {[%clk 0:02:39.4]}
19... Nxe4 {[%clk 0:02:19.8]} 20. Bxe4 {[%clk 0:02:37.4]} 20... Rxc4 {[%clk
0:02:17]} 21. Bb1 {[%clk 0:02:09.2]} 21... g6 {[%clk 0:02:13.4]} 22. Qb3 {[%clk
0:01:44]} 22... Rd4 {[%clk 0:02:08.3]} 23. Rcd1 {[%clk 0:01:34.2]} 23... Rxd1
{[%clk 0:02:07.8]} 24. Qxd1 {[%clk 0:01:32.3]} 24... f5 {[%clk 0:02:07.6]} 25.
g4 {[%clk 0:01:28.6]} 25... e4 {[%clk 0:02:01]} 26. gxf5 {[%clk 0:01:19]} 26...
gxf5 {[%clk 0:02:01.9]} 27. Kh1 {[%clk 0:01:14.2]} 27... Qh4 {[%clk 0:01:58.4]}
28. Rg1+ {[%clk 0:01:12.3]} 28... Kh8 {[%clk 0:01:57.8]} 29. Qd4+ {[%clk
0:01:09.3]} 29... Ne5 {[%clk 0:01:57.7]} 30. Ne2 {[%clk 0:00:44.7]} 30... Qxh3
{[%clk 0:01:30.6]} 31. Nf4 {[%clk 0:00:31.1]} 31... Qf3+ {[%clk 0:01:30.3]} 32.
Rg2 {[%clk 0:00:31.8]} 32... Bg7 {[%clk 0:01:28.5]} 33. Kg1 {[%clk 0:00:23.8]}
33... Rc8 {[%clk 0:01:25.5]} 34. Qd2 {[%clk 0:00:07.1]} 34... Qg4 {[%clk
0:01:19.9]} 35. Rxg4 {[%clk 0:00:03.1]} 35... Nf3+ {[%clk 0:01:19.9]} 36. Kg2
{[%clk 0:00:03.7]} 36... Nxd2 {[%clk 0:01:20.7]} 37. Rg6 {[%clk 0:00:03.2]}
37... Nxb1 {[%clk 0:01:20.2]} 38. Nh5 {[%clk 0:00:03.5]} 38... Bxb2 {[%clk
0:01:14.4]} 39. Kh3 {[%clk 0:00:02.4]} 39... e3 {[%clk 0:01:11.2]} 40. fxe3
{[%clk 0:00:02.5]} 40... Bxd5 {[%clk 0:01:11.5]} 41. Bxd6 {[%clk 0:00:02.4]}
41... Bf7 {[%clk 0:01:09.7]} 42. Rxh6+ {[%clk 0:00:02.2]} 42... Kg8 {[%clk
0:01:10.4]} 43. Bf4 {[%clk 0:00:02.5]} 43... Rc1 {[%clk 0:01:08]} 44. Nf6+
{[%clk 0:00:01.4]} 44... Bxf6 {[%clk 0:01:06.7]} 45. Rxf6 {[%clk 0:00:02.3]}
45... Nc3 {[%clk 0:01:06.1]} 46. Rxb6 {[%clk 0:00:02.2]} 46... Ne2 {[%clk
0:01:06.1]} 47. Rxa6 {[%clk 0:00:02.5]} 47... Rh1+ {[%clk 0:01:04.3]} 48. Kg2
{[%clk 0:00:02.4]} 48... Bd5+ {[%clk 0:01:04.7]} 49. Kf2 {[%clk 0:00:03.1]}
49... Nc3 {[%clk 0:01:03.3]} 50. Rd6 {[%clk 0:00:01.9]} 50... Ne4+ {[%clk
0:01:03.2]} 51. Ke2 {[%clk 0:00:01.5]} 51... Nxd6 {[%clk 0:01:04.1]} 52. Bxd6
{[%clk 0:00:02.4]} 52... Ra1 {[%clk 0:01:02.7]} 53. Kd3 {[%clk 0:00:02.8]} 53...
Ra2 {[%clk 0:01:03.6]} 54. Kd4 {[%clk 0:00:03.1]} 54... Be4 {[%clk 0:01:03.9]}
55. Ke5 {[%clk 0:00:03.3]} 55... Kf7 {[%clk 0:01:04.6]} 56. Kf4 {[%clk
0:00:03.8]} 56... Ke8 {[%clk 0:01:05.3]} 57. Bb4 {[%clk 0:00:04.4]} 57... Kd7
{[%clk 0:01:06.2]} 58. Ke5 {[%clk 0:00:05.3]} 58... Kc6 {[%clk 0:01:07.1]} 59.
Kd4 {[%clk 0:00:06]} 59... Kb5 {[%clk 0:01:08]} 60. Ke5 {[%clk 0:00:06.3]} 60...
Kc4 {[%clk 0:01:08.5]} 61. Kf4 {[%clk 0:00:06.8]} 61... Kd3 {[%clk 0:01:09.1]}
62. Bc5 {[%clk 0:00:07.2]} 62... Rf2+ {[%clk 0:01:09.3]} 63. Ke5 {[%clk
0:00:07.8]} 63... Rc2 {[%clk 0:01:10]} 64. Kd6 {[%clk 0:00:07.3]} 64... Rc4
{[%clk 0:01:10.4]} 65. Bb6 {[%clk 0:00:06]} 65... Rc6+ {[%clk 0:01:10.2]} 0-1

[Event "*** Titled Tuesday Blitz"]
[Site "Chess.com"]
[Date "2021.03.30"]
[Round "10"]
[White "oogee"]
[Black "morte-negra"]
[Result "1-0"]
[WhiteElo "2384"]
[BlackElo "1935"]
[TimeControl "180+1"]
[EndTime "11:58:10 PDT"]
[Termination "oogee won on time"]

1. d4 {[%clk 0:03:00.9]} 1... Nf6 {[%clk 0:02:59]} 2. c4 {[%clk 0:03:00]} 2...
c5 {[%clk 0:02:58.9]} 3. d5 {[%clk 0:02:59.6]} 3... e6 {[%clk 0:02:59.3]} 4. Nc3
{[%clk 0:02:58.1]} 4... exd5 {[%clk 0:02:59.5]} 5. cxd5 {[%clk 0:02:59]} 5... d6
{[%clk 0:02:59.6]} 6. Nf3 {[%clk 0:02:59.1]} 6... g6 {[%clk 0:02:59.7]} 7. Nd2
{[%clk 0:02:59.2]} 7... Na6 {[%clk 0:02:56.8]} 8. e4 {[%clk 0:02:58.9]} 8... Nc7
{[%clk 0:02:55.8]} 9. a4 {[%clk 0:02:58.7]} 9... b6 {[%clk 0:02:55.4]} 10. Bb5+
{[%clk 0:02:56.1]} 10... Bd7 {[%clk 0:02:51.9]} 11. O-O {[%clk 0:02:55.3]} 11...
Bg7 {[%clk 0:02:51.2]} 12. Nc4 {[%clk 0:02:53.5]} 12... O-O {[%clk 0:02:31.7]}
13. Nxd6 {[%clk 0:02:38.3]} 13... a6 {[%clk 0:02:20.3]} 14. Bxd7 {[%clk
0:02:35.3]} 14... Qxd7 {[%clk 0:02:20.1]} 15. Nc4 {[%clk 0:02:35.2]} 15... Rab8
{[%clk 0:02:10.9]} 16. Ne5 {[%clk 0:02:23.8]} 16... Qd6 {[%clk 0:01:53.5]} 17.
Nc6 {[%clk 0:02:18.8]} 17... Rbe8 {[%clk 0:01:50.1]} 18. e5 {[%clk 0:02:15.4]}
18... Rxe5 {[%clk 0:01:43.6]} 19. Bf4 {[%clk 0:02:14.5]} 19... Nfxd5 {[%clk
0:01:34.7]} 20. Bxe5 {[%clk 0:02:13.9]} 20... Bxe5 {[%clk 0:01:34.4]} 21. Nxe5
{[%clk 0:02:13.2]} 21... Qxe5 {[%clk 0:01:33.7]} 22. Re1 {[%clk 0:02:13.2]}
22... Nxc3 {[%clk 0:01:08.8]} 23. Rxe5 {[%clk 0:02:11]} 23... Nxd1 {[%clk
0:01:07.6]} 24. Rxd1 {[%clk 0:02:11.4]} 24... Re8 {[%clk 0:00:54.3]} 25. Rxe8+
{[%clk 0:02:10.6]} 25... Nxe8 {[%clk 0:00:54.2]} 26. Rd8 {[%clk 0:02:07.6]}
26... Kf8 {[%clk 0:00:53.9]} 27. Rb8 {[%clk 0:02:07.6]} 27... b5 {[%clk
0:00:52.7]} 28. axb5 {[%clk 0:02:07.6]} 28... axb5 {[%clk 0:00:52.7]} 29. Rxb5
{[%clk 0:02:07.4]} 29... c4 {[%clk 0:00:51.5]} 30. Rd5 {[%clk 0:02:05.2]} 30...
Ke7 {[%clk 0:00:49.6]} 31. Kf1 {[%clk 0:02:04.1]} 31... Ke6 {[%clk 0:00:48.2]}
32. Rd4 {[%clk 0:02:02.3]} 32... Nd6 {[%clk 0:00:47.6]} 33. Ke2 {[%clk
0:01:58.7]} 33... Ke5 {[%clk 0:00:47.9]} 34. Rh4 {[%clk 0:01:54.5]} 34... h5
{[%clk 0:00:45.9]} 35. Rh3 {[%clk 0:01:46]} 35... Kd4 {[%clk 0:00:42.7]} 36.
Rh4+ {[%clk 0:01:37.1]} 36... Ke5 {[%clk 0:00:38.2]} 37. f3 {[%clk 0:01:36]}
37... f5 {[%clk 0:00:34.5]} 38. Kd2 {[%clk 0:01:31.4]} 38... f4 {[%clk
0:00:32.2]} 39. Kc3 {[%clk 0:01:28.9]} 39... Kf5 {[%clk 0:00:19.7]} 40. g3
{[%clk 0:01:25.3]} 40... fxg3 {[%clk 0:00:14.9]} 41. hxg3 {[%clk 0:01:25.2]}
41... Ke5 {[%clk 0:00:13.7]} 42. g4 {[%clk 0:01:16.6]} 42... hxg4 {[%clk
0:00:11.5]} 43. Rxg4 {[%clk 0:01:16.5]} 43... Kf5 {[%clk 0:00:09.4]} 44. Rd4
{[%clk 0:01:12.3]} 44... Nb5+ {[%clk 0:00:07.7]} 45. Kxc4 {[%clk 0:01:12.5]}
45... Nxd4 {[%clk 0:00:08.2]} 46. Kxd4 {[%clk 0:01:12.6]} 46... Kf4 {[%clk
0:00:08.6]} 47. b4 {[%clk 0:01:12.6]} 47... Kxf3 {[%clk 0:00:08.7]} 48. b5
{[%clk 0:01:12.9]} 48... g5 {[%clk 0:00:09.2]} 49. b6 {[%clk 0:01:13.3]} 49...
g4 {[%clk 0:00:09.8]} 50. b7 {[%clk 0:01:13.6]} 50... g3 {[%clk 0:00:10.3]} 51.
b8=Q {[%clk 0:01:13.9]} 51... g2 {[%clk 0:00:11]} 52. Qh2 {[%clk 0:01:07.3]}
52... Kf2 {[%clk 0:00:07.9]} 53. Qf4+ {[%clk 0:00:56.9]} 53... Ke1 {[%clk
0:00:07.2]} 54. Qg3+ {[%clk 0:00:56.1]} 54... Kf1 {[%clk 0:00:07.2]} 55. Qf3+
{[%clk 0:00:56.1]} 55... Kg1 {[%clk 0:00:06.4]} 56. Ke3 {[%clk 0:00:56.1]} 56...
Kh2 {[%clk 0:00:05.4]} 57. Qh5+ {[%clk 0:00:53.7]} 57... Kg3 {[%clk 0:00:03.8]}
58. Qg5+ {[%clk 0:00:50.6]} 58... Kh2 {[%clk 0:00:03.7]} 59. Qh4+ {[%clk
0:00:50.4]} 59... Kg1 {[%clk 0:00:02.5]} 60. Kf3 {[%clk 0:00:48.8]} 1-0

[Event "*** Titled Tuesday Blitz"]
[Site "Chess.com"]
[Date "2021.03.30"]
[Round "10"]
[White "Romadk"]
[Black "woodhy"]
[Result "1-0"]
[WhiteElo "2322"]
[BlackElo "2429"]
[TimeControl "180+1"]
[EndTime "11:58:11 PDT"]
[Termination "Romadk won by resignation"]

1. d4 {[%clk 0:03:00.9]} 1... Nf6 {[%clk 0:02:59.5]} 2. Nf3 {[%clk 0:03:01]}
2... b6 {[%clk 0:02:59]} 3. g3 {[%clk 0:03:00.5]} 3... Bb7 {[%clk 0:02:59]} 4.
Bg2 {[%clk 0:03:00.9]} 4... e6 {[%clk 0:02:59.9]} 5. O-O {[%clk 0:03:01.2]} 5...
Be7 {[%clk 0:03:00.3]} 6. c4 {[%clk 0:03:01.3]} 6... O-O {[%clk 0:03:00.1]} 7.
Nc3 {[%clk 0:03:01.7]} 7... Ne4 {[%clk 0:02:59.5]} 8. Qc2 {[%clk 0:03:01.5]}
8... f5 {[%clk 0:02:58.4]} 9. Ne5 {[%clk 0:02:42.5]} 9... Nd6 {[%clk 0:02:44.6]}
10. Bxb7 {[%clk 0:02:43.4]} 10... Nxb7 {[%clk 0:02:44.8]} 11. e4 {[%clk
0:02:33.9]} 11... fxe4 {[%clk 0:02:26.5]} 12. Qxe4 {[%clk 0:02:30.2]} 12... Qc8
{[%clk 0:02:12.1]} 13. Qg4 {[%clk 0:02:28.1]} 13... Bf6 {[%clk 0:02:10]} 14. Ne4
{[%clk 0:02:24.2]} 14... Bxe5 {[%clk 0:01:45.6]} 15. dxe5 {[%clk 0:02:25.1]}
15... Qe8 {[%clk 0:01:41.9]} 16. Nf6+ {[%clk 0:02:23.3]} 16... Rxf6 {[%clk
0:01:40.7]} 17. exf6 {[%clk 0:02:24.2]} 17... g6 {[%clk 0:01:40.6]} 18. h4
{[%clk 0:02:19.2]} 18... Qf7 {[%clk 0:01:38.6]} 19. Bg5 {[%clk 0:02:14.8]} 19...
Nd6 {[%clk 0:01:32.9]} 20. h5 {[%clk 0:02:14.6]} 20... gxh5 {[%clk 0:01:31.8]}
21. Qf3 {[%clk 0:02:13.5]} 21... Nc6 {[%clk 0:01:30.3]} 22. Kg2 {[%clk 0:02:11]}
22... Nxc4 {[%clk 0:01:19.7]} 23. Rh1 {[%clk 0:01:57.9]} 23... N4e5 {[%clk
0:01:19.2]} 24. Qxh5 {[%clk 0:01:56]} 24... Qxh5 {[%clk 0:01:15.9]} 25. Rxh5
{[%clk 0:01:56.9]} 25... Rf8 {[%clk 0:01:00]} 26. Rah1 {[%clk 0:01:54.1]} 26...
Rf7 {[%clk 0:00:58.6]} 27. Bf4 {[%clk 0:01:50.9]} 27... d6 {[%clk 0:00:58.5]}
28. Rc1 {[%clk 0:01:48.8]} 28... a5 {[%clk 0:00:47.4]} 29. Rg5+ {[%clk
0:01:45.6]} 29... Kf8 {[%clk 0:00:46.6]} 30. Rg7 {[%clk 0:01:29.6]} 30... Rxf6
{[%clk 0:00:33.4]} 31. Rxh7 {[%clk 0:01:24.4]} 31... Rf7 {[%clk 0:00:18.7]} 32.
Rxf7+ {[%clk 0:01:21.9]} 32... Kxf7 {[%clk 0:00:19.6]} 33. Bxe5 {[%clk 0:01:22]}
33... Nxe5 {[%clk 0:00:20.5]} 34. Rxc7+ {[%clk 0:01:22.2]} 34... Kf6 {[%clk
0:00:21.4]} 35. Rb7 {[%clk 0:01:19.8]} 35... Nc4 {[%clk 0:00:20.1]} 36. b3
{[%clk 0:01:19.3]} 36... Na3 {[%clk 0:00:17.4]} 37. Rxb6 {[%clk 0:01:18.3]}
37... d5 {[%clk 0:00:17.5]} 38. b4 {[%clk 0:01:15.5]} 38... a4 {[%clk
0:00:13.9]} 39. Ra6 {[%clk 0:01:14.2]} 39... d4 {[%clk 0:00:13.5]} 40. Rxa4
{[%clk 0:01:12.3]} 40... Nb5 {[%clk 0:00:13]} 41. Ra5 {[%clk 0:01:05.5]} 41...
d3 {[%clk 0:00:11.8]} 42. Kf3 {[%clk 0:01:05.3]} 42... Nd4+ {[%clk 0:00:08.8]}
43. Ke3 {[%clk 0:01:04.5]} 43... Nc2+ {[%clk 0:00:09.3]} 44. Kxd3 {[%clk
0:01:03.6]} 44... Nxb4+ {[%clk 0:00:10.2]} 45. Ke2 {[%clk 0:01:02.5]} 45... Nc6
{[%clk 0:00:08.9]} 46. Ra8 {[%clk 0:01:00.3]} 46... Nd4+ {[%clk 0:00:06.7]} 47.
Ke3 {[%clk 0:00:59.3]} 47... Nb5 {[%clk 0:00:06.3]} 48. a4 {[%clk 0:00:58.2]}
48... Nc7 {[%clk 0:00:06.6]} 49. Ra7 {[%clk 0:00:54.8]} 49... Nd5+ {[%clk
0:00:05.3]} 50. Kf3 {[%clk 0:00:54.8]} 50... Nc3 {[%clk 0:00:04.1]} 51. a5
{[%clk 0:00:54.2]} 51... Nb5 {[%clk 0:00:04.1]} 52. Ra8 {[%clk 0:00:53.4]} 52...
Nd4+ {[%clk 0:00:03.9]} 53. Kg2 {[%clk 0:00:51.3]} 53... Nc6 {[%clk 0:00:04.8]}
54. a6 {[%clk 0:00:50.6]} 54... Ke7 {[%clk 0:00:04.9]} 55. a7 {[%clk 0:00:49.8]}
55... Kd7 {[%clk 0:00:04.9]} 56. Rh8 {[%clk 0:00:48.1]} 56... Nxa7 {[%clk
0:00:04.4]} 57. Rh7+ {[%clk 0:00:48.1]} 57... Kd6 {[%clk 0:00:05.3]} 1-0

[Event "*** Titled Tuesday Blitz"]
[Site "Chess.com"]
[Date "2021.03.30"]
[Round "10"]
[White "tteshan"]
[Black "BlackWidow515"]
[Result "1/2-1/2"]
[WhiteElo "2323"]
[BlackElo "2202"]
[TimeControl "180+1"]
[EndTime "11:58:12 PDT"]
[Termination "Game drawn - insufficient material"]

1. e4 {[%clk 0:02:57.8]} 1... e5 {[%clk 0:03:00]} 2. Nf3 {[%clk 0:02:56.8]} 2...
Nc6 {[%clk 0:03:00.3]} 3. d4 {[%clk 0:02:56.7]} 3... exd4 {[%clk 0:03:00.3]} 4.
Nxd4 {[%clk 0:02:56.9]} 4... Bc5 {[%clk 0:03:00.7]} 5. Nb3 {[%clk 0:02:56.9]}
5... Bb6 {[%clk 0:03:00.7]} 6. Nc3 {[%clk 0:02:57.2]} 6... a5 {[%clk 0:03:00.7]}
7. a4 {[%clk 0:02:45.3]} 7... Nge7 {[%clk 0:03:00.8]} 8. Bc4 {[%clk 0:02:35.4]}
8... O-O {[%clk 0:02:59.9]} 9. O-O {[%clk 0:02:24.1]} 9... Kh8 {[%clk
0:02:59.6]} 10. Nd5 {[%clk 0:02:17.5]} 10... d6 {[%clk 0:02:57.3]} 11. Nxb6
{[%clk 0:02:16.8]} 11... cxb6 {[%clk 0:02:57.3]} 12. Bf4 {[%clk 0:02:14]} 12...
Ne5 {[%clk 0:02:54.6]} 13. Be2 {[%clk 0:02:13.6]} 13... Be6 {[%clk 0:02:53.7]}
14. Nd4 {[%clk 0:02:12.8]} 14... N7g6 {[%clk 0:02:52.8]} 15. Bg3 {[%clk
0:02:11.3]} 15... Bc4 {[%clk 0:02:52.8]} 16. f4 {[%clk 0:02:03.4]} 16... Bxe2
{[%clk 0:02:51.1]} 17. Qxe2 {[%clk 0:02:04.3]} 17... Nc6 {[%clk 0:02:51.4]} 18.
Nf5 {[%clk 0:01:52.5]} 18... Qf6 {[%clk 0:02:49.7]} 19. c3 {[%clk 0:01:48.5]}
19... Rfe8 {[%clk 0:02:48.6]} 20. Rad1 {[%clk 0:01:39.5]} 20... Qxf5 {[%clk
0:02:35.4]} 21. exf5 {[%clk 0:01:39.6]} 21... Rxe2 {[%clk 0:02:35.8]} 22. fxg6
{[%clk 0:01:40]} 22... hxg6 {[%clk 0:02:36.3]} 23. Rxd6 {[%clk 0:01:26]} 23...
Rae8 {[%clk 0:02:35.5]} 24. b4 {[%clk 0:01:20.7]} 24... axb4 {[%clk 0:02:35.2]}
25. cxb4 {[%clk 0:01:21.6]} 25... Nxb4 {[%clk 0:02:35.5]} 26. Rxb6 {[%clk
0:01:21.8]} 26... Nd3 {[%clk 0:02:33.2]} 27. Rxb7 {[%clk 0:01:18.8]} 27... Ra2
{[%clk 0:02:33.2]} 28. Rxf7 {[%clk 0:01:17.8]} 28... Rxa4 {[%clk 0:02:32]} 29.
f5 {[%clk 0:01:09.1]} 29... g5 {[%clk 0:02:31.8]} 30. f6 {[%clk 0:01:08.7]}
30... gxf6 {[%clk 0:02:28.9]} 31. R7xf6 {[%clk 0:01:08.4]} 31... Ra2 {[%clk
0:02:26.9]} 32. Rf8+ {[%clk 0:01:03.4]} 32... Rxf8 {[%clk 0:02:26.6]} 33. Rxf8+
{[%clk 0:01:04.3]} 33... Kg7 {[%clk 0:02:27]} 34. Rf1 {[%clk 0:01:03.4]} 34...
Kg6 {[%clk 0:02:26.5]} 35. Bd6 {[%clk 0:00:57.7]} 35... Rd2 {[%clk 0:02:21.2]}
36. Be7 {[%clk 0:00:46.2]} 36... Re2 {[%clk 0:02:19]} 37. Bd6 {[%clk 0:00:41.2]}
37... Rd2 {[%clk 0:02:18.5]} 38. Bb8 {[%clk 0:00:40.6]} 38... Rb2 {[%clk
0:02:15.4]} 39. Ba7 {[%clk 0:00:37.5]} 39... Nf4 {[%clk 0:02:11.8]} 40. Bf2
{[%clk 0:00:33.6]} 40... Kh5 {[%clk 0:02:06]} 41. h3 {[%clk 0:00:28.3]} 41...
Rc2 {[%clk 0:02:02.3]} 42. Kh2 {[%clk 0:00:23.4]} 42... g4 {[%clk 0:01:58.7]}
43. Kg3 {[%clk 0:00:20.6]} 43... Ne2+ {[%clk 0:01:55.9]} 44. Kh2 {[%clk
0:00:20.2]} 44... Nf4 {[%clk 0:01:55.7]} 45. hxg4+ {[%clk 0:00:17.1]} 45... Kxg4
{[%clk 0:01:55.3]} 46. g3 {[%clk 0:00:16.5]} 46... Nd3 {[%clk 0:01:51.7]} 47.
Kg2 {[%clk 0:00:16.9]} 47... Ra2 {[%clk 0:01:49.2]} 48. Kg1 {[%clk 0:00:15.1]}
48... Kh3 {[%clk 0:01:49.2]} 49. g4 {[%clk 0:00:13.2]} 49... Kxg4 {[%clk
0:01:49.1]} 50. Be3 {[%clk 0:00:13.3]} 50... Kg3 {[%clk 0:01:45.4]} 51. Rd1
{[%clk 0:00:13]} 51... Ne5 {[%clk 0:01:43.2]} 52. Bf2+ {[%clk 0:00:13.1]} 52...
Kh3 {[%clk 0:01:41.5]} 53. Re1 {[%clk 0:00:12.5]} 53... Nf3+ {[%clk 0:01:41.3]}
54. Kf1 {[%clk 0:00:13.2]} 54... Nxe1 {[%clk 0:01:15.6]} 55. Kxe1 {[%clk
0:00:12.9]} 55... Kg4 {[%clk 0:01:16.2]} 56. Bb6 {[%clk 0:00:11.2]} 56... Kf3
{[%clk 0:01:16.3]} 57. Kd1 {[%clk 0:00:10.8]} 57... Ke4 {[%clk 0:01:15.8]} 58.
Kc1 {[%clk 0:00:08.2]} 58... Kd3 {[%clk 0:01:15.6]} 59. Kb1 {[%clk 0:00:07.9]}
59... Rg2 {[%clk 0:01:13.6]} 60. Ba5 {[%clk 0:00:07.9]} 60... Rh2 {[%clk
0:01:12.3]} 61. Bc7 {[%clk 0:00:04.2]} 61... Kc3 {[%clk 0:01:12.3]} 62. Bxh2
{[%clk 0:00:03.5]} 1/2-1/2